{"text_format":"1","workbook":"xlsx","n_sheets":5,"sheets":["EkDers","Puantaj","Kodlar","Ayar","Arsiv"],"not_rendered":{"charts":0,"images":0,"macros":1,"external_links":0,"defined_names":2,"comments":0,"pivot_tables":0},"unopened":[],"bounds":{"document_bytes":16777216,"sheet_cells":100000,"rows_first":2000,"rows_last":500,"rows_between":2000,"halvings":0,"cell_chars":16384,"cell_head_chars":4096},"cells_cut":0,"cells_raw":0,"read":"whole","date_system":"1900"}

{"sheet":"EkDers","index":0,"n_rows":4,"n_cols":49,"rows_kept":4,"cut":false,"hidden":false,"merged":[[0,9,0,16]]}
[null,null,null,null,null,null,null,null,null,"TEK HAFTALIK\nÜCRET TABLOSU",null,null,null,null,null,null,null,"2020-03-15","2020-03-16","2020-03-17","2020-03-18","2020-03-19","2020-03-20","2020-03-21","2020-03-22","2020-03-23","2020-03-24","2020-03-25","2020-03-26","2020-03-27","2020-03-28","2020-03-29","2020-03-30","2020-03-31","2020-04-01","2020-04-02","2020-04-03","2020-04-04","2020-04-05","2020-04-06","2020-04-07","2020-04-08","2020-04-09","2020-04-10","2020-04-11","2020-04-12","2020-04-13","2020-04-14","GENEL"]
["S.N.","Aktif","Saymanlık  Numarası","Adı ve Soyadı","Görevi","TCKN",null,"Veri Tip","Veri Açıklama","Pt","Sa","Çr","Pr","Cm","Ct","Pz","TOPLAM","Pazar","Pazartesi","Salı","Çarşamba","Perşembe","Cuma","Cumartesi","Pazar","Pazartesi","Salı","Çarşamba","Perşembe","Cuma","Cumartesi","Pazar","Pazartesi","Salı","Çarşamba","Perşembe","Cuma","Cumartesi","Pazar","Pazartesi","Salı","Çarşamba","Perşembe","Cuma","Cumartesi","Pazar","Pazartesi","Salı","TOPLAM"]
[1,true,null,"Ali KARTAL","Sınıf Öğretmeni",12345678910,"+",101,"Gündüz",6,6,6,6,6,null,null,{"$f":"SUM(J3:P3)","v":30},null,6,6,6,6,6,null,null,6,6,6,6,6,null,null,6,6,6,6,6,null,null,6,6,6,6,6,null,null,6,6,{"$f":"SUM(R3:AV3)","v":132}]
[null,null,null,null,null,12345678910,"-",119,"Nöbet Görevi",null,null,null,null,null,null,null,{"$f":"SUM(J4:P4)","v":0},null,null,null,null,null,null,null,null,null,null,null,null,null,null,null,null,null,null,null,null,null,null,null,null,null,null,null,null,null,null,null,{"$f":"SUM(R4:AV4)","v":0}]

{"sheet":"Puantaj","index":1,"n_rows":13,"n_cols":38,"rows_kept":13,"cut":false,"hidden":false,"merged":[[2,5,2,35],[0,5,1,31],[8,27,8,35],[2,36,2,37],[0,32,0,35],[1,32,1,35],[0,36,0,37],[1,36,1,37],[0,2,0,4],[0,0,0,1],[1,0,1,1],[2,0,2,4],[1,2,1,4],[4,37,5,37],[6,31,6,35],[6,0,6,30],[9,27,9,35],[12,27,12,35],[11,27,11,35]]}
["İlçe / İL",null,"Nusaybin / MARDİN",null,null,"EK DERS ÜCRETLERİ ÇİZELGESİ\n(ÜCRETLİ ÖĞRETMENLER)",null,null,null,null,null,null,null,null,null,null,null,null,null,null,null,null,null,null,null,null,null,null,null,null,null,null,"AY",null,null,null,"Mart"]
["Kurumu",null,"GAZİPAŞA ORTAOKULU",null,null,null,null,null,null,null,null,null,null,null,null,null,null,null,null,null,null,null,null,null,null,null,null,null,null,null,null,null,"YIL",null,null,null,2020]
["Ö Ğ R E T M E N İ N",null,null,null,null,"GÜNLÜK OKUTULAN DERS SAATLERİ",null,null,null,null,null,null,null,null,null,null,null,null,null,null,null,null,null,null,null,null,null,null,null,null,null,null,null,null,null,null,"Ders Saati"]
["S.N.","T.C. KİMLİK NO","ADI SOYADI","GÖREVİ","ÜCRET TÜRÜ","2020-03-15","2020-03-16","2020-03-17","2020-03-18","2020-03-19","2020-03-20","2020-03-21","2020-03-22","2020-03-23","2020-03-24","2020-03-25","2020-03-26","2020-03-27","2020-03-28","2020-03-29","2020-03-30","2020-03-31","2020-04-01","2020-04-02","2020-04-03","2020-04-04","2020-04-05","2020-04-06","2020-04-07","2020-04-08","2020-04-09","2020-04-10","2020-04-11","2020-04-12","2020-04-13","2020-04-14","Aylık Ok.","Toplam"]
[1,12345678910,"Ali KARTAL","Sınıf Öğretmeni","Gündüz",null,6,6,6,6,6,null,null,6,6,6,6,6,null,null,6,6,6,6,6,null,null,6,6,6,6,6,null,null,6,6,132,132]
[null,null,null,null,"Nöbet Görevi",null,null,null,null,null,null,null,null,null,null,null,null,null,null,null,null,null,null,null,null,null,null,null,null,null,null,null,null,null,null,null,0]
[{"$f":"\"Yukarıda belirtilen görevlilerce \"&AK2&\" yılının \"&AK1&\" ayında toplam \"&AL7&\"(\"&YAZ(AL7)&\") saat ekders okutulmuştur.\"","v":"Yukarıda belirtilen görevlilerce 2020 yılının Mart ayında toplam 132(YüzOtuzİki) saat ekders okutulmuştur."},null,null,null,null,null,null,null,null,null,null,null,null,null,null,null,null,null,null,null,null,null,null,null,null,null,null,null,null,null,null,"TOPLAM",null,null,null,null,{"$f":"SUM(AK5:AK6)","v":132},132]
[]
[null,null,"DÜZENLEYEN",null,null,null,null,null,null,null,null,null,null,null,null,null,null,null,null,null,null,null,null,null,null,null,null,"UYGUNDUR"]
[null,null,"2020-03-17",null,null,null,null,null,null,null,null,null,null,null,null,null,null,null,null,null,null,null,null,null,null,null,null,"2020-03-17"]
[]
[null,null,"Kudbeddin ÇELİK",null,null,null,null,null,null,null,null,null,null,null,null,null,null,null,null,null,null,null,null,null,null,null,null,"Adil AKDENİZ"]
[null,null,"Müdür Yardımcısı",null,null,null,null,null,null,null,null,null,null,null,null,null,null,null,null,null,null,null,null,null,null,null,null,"Okul Müdürü"]

{"sheet":"Kodlar","index":2,"n_rows":19,"n_cols":3,"rows_kept":19,"cut":false,"hidden":false,"merged":[]}
["S.N.","Veri Tip Kodu","Veri Tipi"]
[1,101,"Gündüz"]
[2,102,"Gece"]
[3,103,"%25 Fazla Gündüz"]
[4,104,"%25 Fazla Gece"]
[5,106,"Belleticilik"]
[6,107,"Sınav Görevi"]
[7,108,"Egzersiz"]
[8,109,"Hizmetiçi"]
[9,110,"Ekders Yer.Geç.Gör. - Gündüz"]
[10,111,"Ekders Yer.Geç.Gör. - Gece"]
[11,112,"Ekders Yer.Geç.Gör. - %25 Gündüz"]
[12,113,"Ekders Yer.Geç.Gör. - %25 Gece"]
[13,114,"Atış Eğitimi"]
[14,115,"Cezaevleri Eğitim Merkezi - 160*Saat"]
[15,116,"Takviye kursu(Gündüz)"]
[16,117,"Takviye kursu(Haftasonu/Gece)"]
[17,118,"Belleticilik %25 Fazla"]
[18,119,"Nöbet Görevi"]

{"sheet":"Ayar","index":3,"n_rows":12,"n_cols":3,"rows_kept":12,"cut":false,"hidden":true,"merged":[]}
["2020-03-15"]
["2020-04-14"]
["Kudbeddin ÇELİK"]
["Müdür Yardımcısı"]
["Adil AKDENİZ"]
["Okul Müdürü"]
["GAZİPAŞA ORTAOKULU"]
["Nusaybin / MARDİN"]
[0]
[0]
[1,100,"Brüt Ders Saatleri (Reh./Kulüp Hariç)"]
[false]

{"sheet":"Arsiv","index":4,"n_rows":8,"n_cols":52,"rows_kept":8,"cut":false,"hidden":false,"merged":[]}
["Tarih","S.N.","Aktif","Saymanlık  Numarası","Adı ve Soyadı","Görevi","TCKN","ArtıEksi","Veri Tip","Veri Açıklama","Pt","Sa","Çr","Pr","Cm","Ct","Pz","TOPLAM"]
["29.05.2017-30.06.2017",1,true,null,"Adil AKDENİZ","Okul Müdürü",12345678912,"+",101,"Gündüz",5,4,4,4,5,null,null,{"$f":"SUM(J3:P3)","v":20},5,4,4,4,5,null,null,5,4,4,4,5,null,null,5,4,4,4,5,null,null,5,4,4,4,5,null,null,5,4,4,4,5,{"$f":"SUM(R3:AX3)","v":126}]
["29.05.2017-30.06.2017",2,true,null,"Kudbeddin ÇELİK","Müdür Yardımcısı",98765432198,"+",101,"Gündüz",4,4,4,4,4,null,null,30,4,4,4,4,4,null,null,4,4,4,4,4,null,null,4,4,4,4,4,null,null,4,4,4,4,4,null,null,4,4,4,4,4,147]
["29.05.2017-30.06.2017",3,true,null,"Erdal NERGİZ","Matematik Öğretmeni",44444444444,"+",101,"Gündüz",6,6,6,6,6,null,null,3,6,6,6,6,6,null,null,6,6,6,6,6,null,null,6,6,6,6,6,null,null,6,6,6,6,6,null,null,6,6,6,6,6,30]
["29.05.2017-30.06.2017",null,null,null,null,null,44444444444,"-",119,"Nöbet Görevi",3,null,null,null,null,null,null,15,3,null,null,null,null,null,null,3,null,null,null,null,null,null,3,null,null,null,null,null,null,3,null,null,null,null,null,null,3,null,null,null,null,75]
["29.05.2017-30.06.2017",4,true,null,"Veysi ALKANDEMİR","Türkçe Öğretmeni",12345678910,"+",101,"Gündüz",3,3,3,3,3,null,null,3,3,3,3,3,3,null,null,3,3,3,3,3,null,null,3,3,3,3,3,null,null,3,3,3,3,3,null,null,3,3,3,3,3,15]
["29.05.2017-30.06.2017",null,null,null,null,null,12345678910,"-",119,"Nöbet Görevi",null,null,3,null,null,null,null,0,null,null,3,null,null,null,null,null,null,3,null,null,null,null,null,null,3,null,null,null,null,null,null,3,null,null,null,null,null,null,3,null,null,0]
["29.05.2017-30.06.2017",5,true,null,"Serap ÜZGEN","Matematik Öğretmeni",12345678914,"+",101,"Gündüz",null,null,null,null,null,null,null,0,null,null,null,null,null,null,null,null,null,null,null,null,null,null,null,null,null,null,null,null,null,null,null,null,null,null,null,null,null,null,null,null,null,0]